fUST/lending_fUST_20250928
["ID","MTS","AMOUNT","RATE_DAILY","PERIOD"]
[388066058,1758997870065,-480.0,0.0003589,9]
[388066059,1758997870075,-480.0,0.0003589,9]
[388066060,1758997870086,-480.0,0.0003589,9]
[388066061,1758997870097,-827.67,0.0003589,9]
[388066062,1758997870107,-888.9,0.0003589,9]
[388066063,1758997870117,-480.0,0.0003589,9]
[388066064,1758997870127,-480.0,0.0003589,9]
[388066065,1758997870136,-481.15595294,0.0003589,9]
[388066066,1758997870146,-480.0,0.0003589,9]
[388066067,1758997870155,-495.74,0.0003589,9]
[388066068,1758997870165,-1714.32,0.0003589,9]
[388066069,1758997870175,-480.0,0.0003589,9]
[388066070,1758997870184,-492.51234018,0.0003589,9]
[388066071,1758997870194,-480.0,0.0003589,9]
[388066072,1758997870203,-534.72923551,0.0003589,9]
[388066073,1758997870213,-624.08,0.0003589,9]
[388066074,1758997870222,-480.0,0.0003589,9]
[388066075,1758997870232,-485.43459442,0.0003589,9]
[388066076,1758997870242,-480.0,0.0003589,9]
[388066077,1758997870251,-480.0,0.0003589,9]
[388066078,1758997870261,-480.0,0.0003589,9]
[388066079,1758997870270,-480.0,0.0003589,9]
[388066080,1758997870280,-480.0,0.0003589,9]
[388066081,1758997870290,-767.65,0.0003589,9]
[388066082,1758997870299,-480.0,0.0003589,9]
[388066083,1758997870309,-480.0,0.0003589,9]
[388066084,1758997870319,-480.0,0.0003589,9]
[388066085,1758997870329,-480.0,0.0003589,9]
[388066086,1758997870338,-654.52,0.0003589,9]
[388066087,1758997870348,-641.4,0.0003589,9]
[388066088,1758997870357,-916.99,0.0003589,9]
[388066089,1758997870367,-480.0,0.0003589,9]
[388066090,1758997870377,-657.89,0.0003589,9]
[388066091,1758997870387,-546.78464076,0.0003589,9]
[388066092,1758997870396,-687.32,0.0003589,9]
[388066093,1758997870410,-480.0,0.0003589,9]
[388066094,1758997870420,-984.98,0.0003589,9]
[388066095,1758997870430,-480.0,0.0003589,9]
[388066096,1758997870440,-480.0,0.0003589,9]
[388066097,1758997870449,-480.0,0.0003589,9]
[388066098,1758997870459,-480.0,0.0003589,9]
[388066099,1758997870469,-804.55,0.0003589,9]
[388066100,1758997870479,-482.10745441,0.0003589,9]
[388066101,1758997870489,-1202.92,0.0003589,9]
[388066102,1758997870498,-506.69,0.0003589,9]
[388066103,1758997870507,-480.0,0.0003589,9]
[388066104,1758997870517,-412.71635099,0.0003589,9]
[388066105,1758997870527,-480.0,0.0003589,9]
[388066106,1758997870537,-489.21819823,0.0003589,9]
[388066107,1758997870546,-670.7,0.0003589,9]
[388066108,1758997870556,-480.0,0.0003589,9]
[388066109,1758997870565,-480.0,0.0003589,9]
[388066110,1758997870574,-480.0,0.0003589,9]
[388066111,1758997870584,-680.1,0.0003589,9]
[388066112,1758997870593,-480.0,0.0003589,9]
[388066113,1758997870602,-485.51431265,0.0003589,9]
[388066114,1758997870611,-425.31557688,0.0003589,9]
[388066115,1758997870621,-480.0,0.0003589,9]
[388066116,1758997870631,-480.0,0.0003589,9]
[388066117,1758997870640,-480.0,0.0003589,9]
[388066118,1758997870650,-480.0,0.0003589,9]
[388066119,1758997870659,-639.56,0.0003589,9]
[388066120,1758997870668,-967.3,0.0003589,9]
[388066121,1758997870678,-2059.46,0.0003589,9]
[388066122,1758997870687,-644.28,0.0003589,9]
[388066123,1758997870698,-480.0,0.0003589,9]
[388066124,1758997870707,-480.0,0.0003589,9]
[388066125,1758997870717,-480.0,0.0003589,9]
[388066126,1758997870726,-480.0,0.0003589,9]
[388066127,1758997870735,-482.36592456,0.0003589,9]
[388066128,1758997870745,-420.72326434,0.0003589,9]
[388066129,1758997870754,-480.0,0.0003589,9]
[388066130,1758997870765,-480.0,0.0003589,9]
[388066131,1758997870774,-495.64,0.0003589,9]
[388066132,1758997870783,-735.13,0.0003589,9]
[388066133,1758997870794,-480.0,0.0003589,9]
[388066134,1758997870804,-1008.33,0.0003589,9]
[388066135,1758997870814,-480.0,0.0003589,9]
[388066136,1758997870823,-480.0,0.0003589,9]
[388066137,1758997870834,-480.0,0.0003589,9]
[388066138,1758997870844,-482.28,0.0003589,9]
[388066139,1758997870853,-480.0,0.0003589,9]
[388066140,1758997870863,-480.0,0.0003589,9]
[388066141,1758997870872,-480.0,0.0003589,9]
[388066142,1758997870882,-480.0,0.0003589,9]
[388066143,1758997870892,-480.0,0.0003589,9]
[388066144,1758997870901,-527.25,0.0003589,9]
[388066145,1758997870911,-480.0,0.0003589,9]
[388066146,1758997870920,-481.32534001,0.0003589,9]
[388066147,1758997870929,-480.0,0.0003589,9]
[388066148,1758997870939,-480.0,0.0003589,7]
[388066149,1758997870949,-480.0,0.0003589,9]
[388066150,1758997870958,-480.0,0.0003589,9]
[388066151,1758997870967,-480.0,0.0003589,9]
[388066152,1758997870977,-481.6354224,0.0003589,9]
[388066153,1758997870986,-480.0,0.0003589,9]
[388066154,1758997870996,-726.77,0.0003589,9]
[388066155,1758997871006,-480.0,0.0003589,9]
[388066156,1758997871015,-480.0,0.0003589,9]
[388066157,1758997871026,-648.43,0.0003589,9]
[388066158,1758997871036,-480.0,0.0003589,9]
[388066159,1758997871046,-580.89,0.0003589,9]
[388066160,1758997871055,-480.0,0.0003589,9]
[388066161,1758997871065,-294.22862839,0.0003589,9]
[388066162,1758997871074,-480.0,0.0003589,9]
[388066163,1758997871083,-1489.82,0.0003589,9]
[388066164,1758997871093,-480.0,0.0003589,9]
[388066165,1758997871103,-480.0,0.0003589,9]
[388066166,1758997871112,-480.0,0.0003589,9]
[388066167,1758997871122,-480.0,0.0003589,9]
[388066168,1758997871131,-1002.5,0.0003589,9]
[388066169,1758997871141,-480.52900978,0.0003589,9]
[388066170,1758997871151,-709.35,0.0003589,9]
[388066171,1758997871160,-480.0,0.0003589,9]
[388066172,1758997871170,-480.0,0.0003589,9]
[388066173,1758997871180,-480.0,0.0003589,9]
[388066174,1758997871190,-480.0,0.0003589,9]
[388066175,1758997871200,-480.0,0.0003589,9]
[388066176,1758997871210,-480.83791079,0.0003589,9]
[388066177,1758997871219,-2233.22,0.0003589,9]
[388066178,1758997871228,-1680.74,0.0003589,9]
[388066179,1758997871238,-480.0,0.0003589,9]
[388066180,1758997871248,-480.0,0.0003589,9]
[388066181,1758997871258,-480.0,0.0003589,9]
[388066182,1758997871267,-1886.14,0.0003589,9]
[388066183,1758997871277,-480.0,0.0003589,9]
[388066184,1758997871287,-959.06,0.0003589,9]
[388066185,1758997871297,-1218.71,0.0003589,9]
[388066186,1758997871306,-480.0,0.0003589,9]
[388066187,1758997871315,-486.12692028,0.0003589,9]
[388066188,1758997871326,-480.0,0.0003589,9]
[388066189,1758997871335,-480.0,0.0003589,9]
[388066190,1758997871345,-480.0,0.0003589,9]
[388066191,1758997871355,-1327.72,0.0003589,9]
[388066192,1758997871364,-480.0,0.0003589,9]
[388066193,1758997871374,-547.88531598,0.0003589,9]
[388066194,1758997871384,-480.0,0.0003589,9]
[388066195,1758997871393,-1128.34,0.0003589,9]
[388066196,1758997871407,-480.0,0.0003589,9]
[388066197,1758997871417,-480.0,0.0003589,9]
[388066198,1758997871427,-480.0,0.0003589,9]
[388066199,1758997871436,-2258.67,0.0003589,9]
[388066200,1758997871448,-480.0,0.0003589,9]
[388066201,1758997871458,-700.85,0.0003589,9]
[388066202,1758997871467,-480.0,0.0003589,9]
[388066203,1758997871477,-480.0,0.0003589,9]
[388066204,1758997871488,-480.0,0.0003589,9]
[388066205,1758997871498,-480.0,0.0003589,9]
[388066206,1758997871508,-2335.56,0.0003589,9]
[388066207,1758997871517,-1174.22,0.0003589,9]
[388066208,1758997871526,-480.0,0.0003589,9]
[388066209,1758997871535,-480.0,0.0003589,9]
[388066210,1758997871545,-560.18,0.0003589,9]
[388066211,1758997871555,-480.0,0.0003589,9]
[388066212,1758997871564,-480.0,0.0003589,9]
[388066213,1758997871574,-709.38,0.0003589,9]
[388066214,1758997871584,-438.26139437,0.0003589,9]
[388066215,1758997871593,-481.60010585,0.0003589,9]
[388066216,1758997871603,-986.26,0.0003589,9]
[388066217,1758997871613,-2457.12,0.0003589,9]
[388066218,1758997871622,-480.0,0.0003589,9]
[388066219,1758997871633,-570.04378345,0.0003589,9]
[388066220,1758997871642,-480.0,0.0003589,9]
[388066221,1758997871652,-1938.12,0.0003589,9]
[388066222,1758997871662,-870.12,0.0003589,9]
[388066223,1758997871674,-480.0,0.0003589,9]
[388066224,1758997871685,-480.0,0.0003589,9]
[388066225,1758997871695,-483.7697317,0.0003589,9]
[388066226,1758997871704,-484.20062492,0.0003589,9]
[388066227,1758997871714,-804.13,0.0003589,9]
[388066228,1758997871723,-480.0,0.0003589,9]
[388066229,1758997871733,-480.0,0.0003589,9]
[388066230,1758997871742,-1128.38,0.0003589,9]
[388066231,1758997871752,-480.0,0.0003589,9]
[388066232,1758997871761,-480.0,0.0003589,9]
[388066233,1758997871771,-726.2,0.0003589,9]
[388066234,1758997871780,-480.0,0.0003589,9]
[388066235,1758997871790,-1183.73,0.0003589,9]
[388066236,1758997871799,-1736.8,0.0003589,9]
[388066237,1758997871809,-480.0,0.0003589,7]
[388066238,1758997871818,-542.71,0.0003589,9]
[388066239,1758997871828,-480.0,0.0003589,9]
[388066240,1758997871838,-417.93367144,0.0003589,9]
[388066241,1758997871847,-480.0,0.0003589,9]
[388066242,1758997871857,-480.0,0.0003589,9]
[388066243,1758997871866,-480.0,0.0003589,9]
[388066244,1758997871876,-480.0,0.0003589,9]
[388066245,1758997871886,-527.17,0.0003589,9]
[388066246,1758997871896,-480.0,0.0003589,9]
[388066247,1758997871906,-480.0,0.0003589,9]
[388066248,1758997871915,-166.86823593,0.0003589,9]
[388066249,1758997871925,-480.0,0.0003589,9]
[388066250,1758997871935,-481.53618836,0.0003589,2]
[388066251,1758997871944,-480.0,0.0003589,9]
[388066252,1758997871954,-1084.07,0.0003589,9]
[388066253,1758997871965,-480.0,0.0003589,9]
[388066254,1758997871975,-494.1166733,0.0003589,9]
[388066255,1758997871985,-480.0,0.0003589,9]
[388066256,1758997871994,-1242.03,0.0003589,9]
[388066257,1758997872003,-480.0,0.0003589,9]
[388066258,1758997872013,-864.21,0.0003589,9]
[388066259,1758997872024,-480.0,0.0003589,9]
[388066260,1758997872034,-480.0,0.0003589,9]
[388066261,1758997872044,-480.0,0.0003589,9]
[388066262,1758997872054,-654.96,0.0003589,9]
[388066263,1758997872064,-480.0,0.0003589,9]
[388066264,1758997872074,-480.0,0.0003589,9]
[388066265,1758997872086,-704.03,0.0003589,9]
[388066266,1758997872095,-480.0,0.0003589,9]
[388066267,1758997872105,-480.0,0.0003589,9]
[388066268,1758997872115,-203.89,0.0003589,9]
[388066269,1758997872125,-19748.13,0.0003589,9]
[388066270,1758997872135,-3979.06,0.0003589,9]
[388066271,1758997872145,-480.0,0.0003589,9]
[388066272,1758997872154,-480.0,0.0003589,9]
[388066273,1758997872164,-480.0,0.0003589,9]
[388066274,1758997872174,-480.0,0.0003589,9]
[388066275,1758997872183,-480.0,0.0003589,9]
[388066276,1758997872196,-481.52684116,0.0003589,9]
[388066277,1758997872206,-480.0,0.0003589,9]
[388066278,1758997872216,-480.0,0.0003589,9]
[388066279,1758997872226,-480.0,0.0003589,9]
[388066280,1758997872236,-592.93,0.0003589,9]
[388066281,1758997872245,-480.0,0.0003589,9]
[388066282,1758997872255,-480.0,0.0003589,9]
[388066283,1758997872265,-480.0,0.0003589,9]
[388066284,1758997872275,-480.0,0.0003589,9]
[388066285,1758997872285,-3740.31,0.0003589,9]
[388066286,1758997872295,-480.0,0.0003589,9]
[388066287,1758997872304,-480.0,0.0003589,9]
[388066288,1758997872314,-480.0,0.0003589,9]
[388066289,1758997872324,-490.47,0.0003589,9]
[388066290,1758997872334,-169.52236879,0.0003589,9]
[388066291,1758997872344,-480.0,0.0003589,9]
[388066292,1758997872354,-973.45,0.0003589,9]
[388066293,1758997872364,-488.82913785,0.0003589,9]
[388066294,1758997872374,-480.0,0.0003589,9]
[388066295,1758997872384,-480.0,0.0003589,9]
[388066296,1758997872394,-2227.46,0.0003589,9]
[388066297,1758997872408,-213.34954169,0.0003589,9]
[388066298,1758997872418,-1686.18,0.0003589,9]
[388066299,1758997872428,-480.0,0.0003589,9]
[388066300,1758997872439,-500.0,0.0003589,30]
[388066301,1758997872448,-480.0,0.0003589,9]
[388066302,1758997872618,-480.0,0.0003589,9]
[388066303,1758997872628,-480.0,0.0003589,9]
[388066304,1758997872637,-906.45,0.0003589,9]
[388066305,1758997872647,-480.0,0.0003589,9]
[388066306,1758997872656,-480.0,0.0003589,9]
[388066307,1758997872665,-480.0,0.0003589,9]
[388066308,1758997872674,-489.04,0.0003589,9]
[388066309,1758997872684,-480.0,0.0003589,9]
[388066310,1758997872693,-480.0,0.0003589,9]
[388066311,1758997872703,-1041.71,0.0003589,9]
[388066312,1758997872713,-1630.01,0.0003589,9]
[388066313,1758997872723,-480.0,0.0003589,9]
[388066314,1758997872733,-501.47,0.0003589,9]
[388066315,1758997872742,-706.66,0.0003589,9]
[388066316,1758997872753,-480.0,0.0003589,9]
[388066317,1758997872763,-480.0,0.0003589,9]
[388066318,1758997872772,-480.0,0.0003589,9]
[388066319,1758997872781,-4544.98,0.0003589,9]
[388066320,1758997872791,-611.03,0.0003589,9]
[388066321,1758997872800,-480.0,0.0003589,9]
[388066322,1758997872811,-480.0,0.0003589,9]
[388066323,1758997872820,-480.0,0.0003589,9]
[388066324,1758997872829,-480.0,0.0003589,9]
[388066325,1758997872840,-480.0,0.0003589,9]
[388066326,1758997872849,-1000.0,0.0003589,9]
[388066327,1758997872859,-527.42,0.0003589,9]
[388066328,1758997872869,-633.24,0.0003589,9]
[388066329,1758997872878,-237.59333328,0.0003589,9]
[388066330,1758997872890,-2619.2,0.0003589,9]
[388066331,1758997872901,-480.0,0.0003589,9]
[388066332,1758997872911,-480.0,0.0003589,9]
[388066333,1758997872922,-480.0,0.0003589,9]
[388066334,1758997872933,-480.0,0.0003589,9]
[388066335,1758997872943,-480.0,0.0003589,9]
[388066336,1758997872953,-480.0,0.0003589,9]
[388066337,1758997872962,-499.5493908,0.0003589,9]
[388066338,1758997872973,-547.97,0.0003589,9]
[388066339,1758997872982,-1684.93,0.0003589,9]
[388066340,1758997872993,-480.0,0.0003589,9]
[388066341,1758997873004,-480.0,0.0003589,9]
[388066342,1758997873014,-1174.56,0.0003589,9]
[388066343,1758997873023,-480.0,0.0003589,9]
[388066344,1758997873033,-480.0,0.0003589,9]
[388066345,1758997873042,-500.0,0.0003589,9]
[388066346,1758997873052,-1801.25,0.0003589,9]
[388066347,1758997873061,-480.0,0.0003589,9]
[388066348,1758997873071,-480.0,0.0003589,9]
[388066349,1758997873080,-480.0,0.0003589,9]
[388066350,1758997873089,-500.0,0.0003589,9]
[388066351,1758997873099,-480.0,0.0003589,9]
[388066352,1758997873108,-480.0,0.0003589,9]
[388066353,1758997873117,-480.0,0.0003589,9]
[388066354,1758997873127,-480.0,0.0003589,9]
[388066355,1758997873137,-480.0,0.0003589,9]
[388066356,1758997873146,-480.0,0.0003589,9]
[388066357,1758997873155,-480.0,0.0003589,9]
[388066358,1758997873164,-2558.39,0.0003589,9]
[388066359,1758997873174,-480.0,0.0003589,9]
[388066360,1758997873184,-480.0,0.0003589,9]
[388066361,1758997873193,-480.0,0.0003589,9]
[388066362,1758997873203,-1059.26,0.0003589,9]
[388066363,1758997873213,-1304.54,0.0003589,9]
[388066364,1758997873222,-711.67,0.0003589,9]
[388066365,1758997873233,-1965.18,0.0003589,9]
[388066366,1758997873242,-480.0,0.0003589,9]
[388066367,1758997873251,-9329.3,0.0003589,9]
[388066368,1758997873260,-8808.17,0.0003589,9]
[388066369,1758997873269,-566.42,0.0003589,9]
[388066370,1758997873280,-2909.06,0.0003589,9]
[388066371,1758997873290,-480.0,0.0003589,9]
[388066372,1758997873300,-480.0,0.0003589,9]
[388066373,1758997873310,-480.0,0.0003589,9]
[388066374,1758997873320,-480.0,0.0003589,9]
[388066375,1758997873329,-480.0,0.0003589,9]
[388066376,1758997873339,-480.0,0.0003589,9]
[388066377,1758997873350,-480.0,0.0003589,9]
[388066378,1758997873359,-1573.34,0.0003589,9]
[388066379,1758997873373,-480.0,0.0003589,9]
[388066380,1758997873383,-480.0,0.0003589,9]
[388066381,1758997873392,-1047.23,0.0003589,9]
[388066382,1758997873402,-480.0,0.0003589,9]
[388066383,1758997873414,-480.0,0.0003589,9]
[388066384,1758997873423,-480.0,0.0003589,9]
[388066385,1758997873434,-2419.24,0.0003589,9]
[388066386,1758997873444,-480.0,0.0003589,9]
[388066387,1758997873455,-480.0,0.0003589,9]
[388066388,1758997873464,-535.37,0.0003589,9]
[388066389,1758997873474,-480.0,0.0003589,9]
[388066390,1758997873485,-748.96,0.0003589,9]
[388066391,1758997873495,-480.0,0.0003589,9]
[388066392,1758997873504,-480.0,0.0003589,9]
[388066393,1758997873513,-480.0,0.0003589,9]
[388066394,1758997873522,-5287.15,0.0003589,3]
[388066395,1758997873532,-937.25,0.0003589,9]
[388066396,1758997873540,-760.22,0.0003589,9]
[388066397,1758997873550,-506.64,0.0003589,9]
[388066398,1758997873559,-480.0,0.0003589,9]
[388066399,1758997873568,-480.0,0.0003589,9]
[388066400,1758997873577,-480.0,0.0003589,9]
[388066401,1758997873587,-3695.5,0.0003589,9]
[388066402,1758997873597,-481.13380587,0.0003589,9]
[388066403,1758997873606,-2360.86,0.0003589,9]
[388066404,1758997873615,-1126.85,0.0003589,9]
[388066405,1758997873625,-2195.77,0.0003589,9]
[388066406,1758997873634,-480.0,0.0003589,9]
[388066407,1758997873643,-480.0,0.0003589,9]
[388066408,1758997873652,-480.0,0.0003589,9]
[388066409,1758997873662,-480.0,0.0003589,9]
[388066410,1758997873673,-480.0,0.0003589,9]
[388066411,1758997873682,-480.0,0.0003589,7]
[388066412,1758997873692,-403.9971183,0.0003589,9]
[388066413,1758997873701,-480.0,0.0003589,9]
[388066414,1758997873711,-3172.01,0.0003589,9]
[388066415,1758997873721,-3081.13,0.0003589,9]
[388066416,1758997873731,-1319.99,0.0003589,9]
[388066417,1758997873740,-877.25,0.0003589,9]
[388066418,1758997873750,-480.0,0.0003589,9]
[388066419,1758997873760,-459.86289131,0.0003589,9]
[388066420,1758997873769,-9844.2,0.0003589,9]
[388066421,1758997873778,-635.95,0.0003589,9]
[388066422,1758997873788,-3860.08,0.0003589,9]
[388066423,1758997873797,-7092.91,0.0003589,9]
[388066424,1758997873806,-641.01,0.0003589,9]
[388066425,1758997873815,-480.0,0.0003589,9]
[388066426,1758997873825,-495.36342559,0.0003589,9]
[388066427,1758997873834,-480.0,0.0003589,9]
[388066428,1758997873844,-480.0,0.0003589,9]
[388066429,1758997873853,-480.0,0.0003589,9]
[388066430,1758997873863,-480.0,0.0003589,9]
[388066431,1758997873872,-4924.13,0.0003589,9]
[388066432,1758997873881,-480.0,0.0003589,9]
[388066433,1758997873891,-5282.46,0.0003589,9]
[388066434,1758997873900,-480.0,0.0003589,9]
[388066435,1758997873909,-823.53,0.0003589,9]
[388066436,1758997873919,-480.0,0.0003589,9]
[388066437,1758997873928,-490.45,0.0003589,9]
[388066438,1758997873937,-981.99,0.0003589,9]
[388066439,1758997873947,-741.53,0.0003589,9]
[388066440,1758997873957,-2847.4,0.0003589,9]
[388066441,1758997873967,-480.0,0.0003589,9]
[388066442,1758997873977,-480.0,0.0003589,9]
[388066443,1758997873987,-480.0,0.0003589,9]
[388066444,1758997873996,-1099.71,0.0003589,9]
[388066445,1758997874006,-480.0,0.0003589,9]
[388066446,1758997874016,-1703.91,0.0003589,9]
[388066447,1758997874026,-430.699136,0.0003589,9]
[388066448,1758997874035,-795.42,0.0003589,9]
[388066449,1758997874044,-480.0,0.0003589,9]
[388066450,1758997874055,-480.0,0.0003589,9]
[388066451,1758997874064,-2239.46,0.0003589,9]
[388066452,1758997874075,-754.28,0.0003589,9]
[388066453,1758997874084,-661.35,0.0003589,9]
[388066454,1758997874094,-480.0,0.0003589,9]
[388066455,1758997874103,-543.26,0.0003589,9]
[388066456,1758997874114,-380.34395044,0.0003589,9]
[388066457,1758997874124,-480.0,0.0003589,9]
[388066458,1758997874133,-510.93,0.0003589,9]
[388066459,1758997874143,-1055.88,0.0003589,9]
[388066460,1758997874153,-480.0,0.0003589,9]
[388066461,1758997874162,-480.0,0.0003589,9]
[388066462,1758997874172,-480.0,0.0003589,9]
[388066463,1758997874183,-480.0,0.0003589,9]
[388066464,1758997874192,-480.0,0.0003589,9]
[388066465,1758997874201,-489.07,0.0003589,9]
[388066466,1758997874212,-480.0,0.0003589,9]
[388066467,1758997874221,-5302.41,0.0003589,9]
[388066468,1758997874230,-480.0,0.0003589,9]
[388066469,1758997874239,-678.36,0.0003589,9]
[388066470,1758997874248,-1027.71,0.0003589,9]
[388066471,1758997874258,-480.0,0.0003589,9]
[388066472,1758997874267,-944.7,0.0003589,9]
[388066473,1758997874276,-480.0,0.0003589,9]
[388066474,1758997874286,-507.75,0.0003589,9]
[388066475,1758997874296,-480.0,0.0003589,9]
[388066476,1758997874305,-1275.11,0.0003589,9]
[388066477,1758997874314,-480.0,0.0003589,9]
[388066478,1758997874324,-809.87,0.0003589,9]
[388066479,1758997874334,-480.0,0.0003589,9]
[388066480,1758997874343,-480.0,0.0003589,9]
[388066481,1758997874353,-1082.0,0.0003589,9]
[388066482,1758997874363,-480.0,0.0003589,9]
[388066483,1758997874372,-480.0,0.0003589,9]
[388066484,1758997874382,-9317.03,0.0003589,9]
[388066485,1758997874391,-641.15,0.0003589,9]
[388066486,1758997874403,-804.44,0.0003589,9]
[388066487,1758997874413,-480.0,0.0003589,9]
[388066488,1758997874423,-480.0,0.0003589,9]
[388066489,1758997874432,-480.0,0.0003589,9]
[388066490,1758997874441,-480.0,0.0003589,9]
[388066491,1758997874452,-2561.61,0.0003589,9]
[388066492,1758997874462,-480.0,0.0003589,9]
[388066493,1758997874471,-1412.08,0.0003589,9]
[388066494,1758997874481,-3259.98,0.0003589,9]
[388066495,1758997874490,-480.0,0.0003589,9]
[388066496,1758997874500,-816.3,0.0003589,9]
[388066497,1758997874510,-480.0,0.0003589,9]
[388066498,1758997874519,-1725.97,0.0003589,9]
[388066499,1758997874529,-2441.91,0.0003589,9]
[388066500,1758997874538,-174.12492746,0.0003589,9]
[388066501,1758997874548,-1049.37,0.0003589,9]
[388066502,1758997874557,-480.0,0.0003589,9]
[388066503,1758997874566,-492.9,0.0003589,9]
[388066504,1758997874575,-480.0,0.0003589,9]
[388066505,1758997874584,-2584.0,0.0003589,9]
[388066506,1758997874594,-480.0,0.0003589,9]
[388066507,1758997874604,-2488.71,0.0003589,9]
[388066508,1758997874613,-480.0,0.0003589,9]
[388066509,1758997874622,-512.78,0.0003589,9]
[388066510,1758997874635,-480.0,0.0003589,9]
[388066511,1758997874645,-720.37,0.0003589,9]
[388066512,1758997874654,-678.07,0.0003589,9]
[388066513,1758997874663,-480.0,0.0003589,9]
[388066514,1758997874672,-1947.34,0.0003589,9]
[388066515,1758997874682,-4936.06,0.0003589,9]
[388066516,1758997874691,-480.0,0.0003589,9]
[388066517,1758997874700,-694.56,0.0003589,9]
[388066518,1758997874710,-480.0,0.0003589,9]
[388066519,1758997874719,-480.0,0.0003589,9]
[388066520,1758997874729,-6118.56,0.0003589,9]
[388066521,1758997874738,-480.0,0.0003589,9]
[388066522,1758997874748,-480.0,0.0003589,9]
[388066523,1758997874757,-1176.28,0.0003589,9]
[388066524,1758997874766,-870.93,0.0003589,9]
[388066525,1758997874776,-752.9,0.0003589,9]
[388066526,1758997874785,-535.46,0.0003589,9]
[388066527,1758997874795,-480.0,0.0003589,9]
[388066528,1758997874804,-480.0,0.0003589,9]
[388066529,1758997874813,-1004.31,0.0003589,9]
[388066530,1758997874823,-492.63,0.0003589,9]
[388066531,1758997874831,-480.0,0.0003589,9]
[388066532,1758997874841,-480.0,0.0003589,9]
[388066533,1758997874850,-480.0,0.0003589,9]
[388066534,1758997874859,-480.0,0.0003589,9]
[388066535,1758997874869,-506.82847033,0.0003589,9]
[388066536,1758997874879,-3100.91,0.0003589,9]
[388066537,1758997874889,-480.0,0.0003589,9]
[388066538,1758997874899,-480.0,0.0003589,9]
[388066539,1758997874909,-1289.02,0.0003589,9]
[388066540,1758997874919,-3165.25,0.0003589,9]
[388066541,1758997874929,-480.0,0.0003589,9]
[388066542,1758997874939,-555.53,0.0003589,9]
[388066543,1758997874949,-1487.53,0.0003589,9]
[388066544,1758997874958,-1709.99,0.0003589,9]
[388066545,1758997874968,-480.0,0.0003589,9]
[388066546,1758997874977,-740.14,0.0003589,9]
[388066547,1758997874986,-549.74,0.0003589,9]
[388066548,1758997874996,-621.24,0.0003589,9]
[388066549,1758997875006,-1374.87,0.0003589,9]
[388066550,1758997875015,-773.42,0.0003589,9]
[388066551,1758997875025,-480.0,0.0003589,9]
[388066552,1758997875035,-480.0,0.0003589,9]
[388066553,1758997875044,-392.03353693,0.0003589,9]
[388066554,1758997875054,-480.0,0.0003589,9]
[388066555,1758997875063,-480.0,0.0003589,9]
[388066556,1758997875073,-480.0,0.0003589,9]
[388066557,1758997875083,-701.08,0.0003589,9]